bitfinex/quotes_SOLUSD_20220228
["timestamp","ask_amount","ask_price","bid_price","bid_amount"]
[1646035254970,113.1,88.264,88.16,17.0165]
[1646035255166,113.1,88.262,88.13,56.7296]
[1646035255370,113.1,88.26,88.13,56.7296]
[1646035255769,6.0,88.259,88.144,27.01503327]
[1646035256169,8.74678921,88.259,88.152,113.1]
[1646035256368,8.74678921,88.259,88.145,49.0035]
[1646035256568,2.74678921,88.258,88.145,49.0035]
[1646035256775,6.0,88.257,88.145,49.0035]
[1646035257070,113.1,88.256,88.145,49.0035]
[1646035257271,2.79,88.294,88.18,113.1]
[1646035257476,24.4286,88.328,88.182,113.1]
[1646035257671,24.3484,88.357,88.184,113.1]
[1646035257872,24.3484,88.357,88.186,113.1]
[1646035258072,24.3484,88.357,88.201,113.1]
[1646035258270,47.51586785,88.356,88.21,56.6776]
[1646035258472,47.51586785,88.356,88.211,119.1]
[1646035258673,2.79,88.354,88.211,119.1]
[1646035258873,113.1,88.355,88.211,157.27021313]
[1646035259073,113.1,88.355,88.213,113.1]
[1646035259272,113.1,88.349,88.214,6.0]
[1646035259472,113.1,88.349,88.214,40.75675725]
[1646035259672,113.1,88.347,88.215,34.75675725]
[1646035259875,113.1,88.347,88.216,6.0]
[1646035260473,113.1,88.347,88.205,6.0]
[1646035260674,2.79,88.344,88.205,6.0]
[1646035260874,113.1,88.332,88.193,6.0]
[1646035261074,113.1,88.33,88.193,6.0]
[1646035261275,113.1,88.33,88.195,113.1]
[1646035261573,130.1062,88.33,88.201,113.1]
[1646035261872,130.1062,88.33,88.202,119.1]
[1646035262074,130.1062,88.33,88.202,174.57818021]
[1646035262273,130.1062,88.33,88.203,55.47818021]
[1646035262575,17.0062,88.33,88.23,17.0043]
[1646035262773,130.1062,88.33,88.231,6.0]
[1646035263173,1.46399204,88.329,88.206,3.07005768]
[1646035263575,1.46399204,88.329,88.207,21.72441159]
[1646035263972,1.46399204,88.329,88.208,2.96617972]
[1646035264173,1.46399204,88.329,88.209,2.70769629]
[1646035264373,113.1,88.319,88.21,17.0069]
[1646035264573,113.1,88.317,88.21,17.0069]
[1646035264773,1.51006355,88.316,88.211,6.0]
[1646035266380,1.42479111,88.309,88.194,2.91376699]
[1646035266577,1.42479111,88.309,88.195,6.0]
[1646035266777,1.42479111,88.309,88.194,2.91376699]
[1646035266977,1.48095578,88.307,88.178,4.533]
[1646035267177,113.1,88.302,88.178,4.533]
[1646035267378,1.36918479,88.301,88.178,4.533]
[1646035267578,45.96826357,88.303,88.178,4.533]
[1646035267579,1.86342818,88.299,88.178,4.533]
[1646035267780,1.86342818,88.299,88.197,115.06221332]
[1646035267979,1.86342818,88.299,88.197,112.6]
[1646035268180,1.86342818,88.299,88.178,4.533]
[1646035268780,17.0139,88.29,88.178,4.533]
[1646035268981,113.1,88.287,88.178,4.533]
[1646035269181,1.6741882,88.286,88.178,4.533]
[1646035269881,22.6152,88.285,88.178,4.533]
[1646035270082,1.62901814,88.283,88.178,4.533]
[1646035270481,130.1165,88.28,88.178,4.533]
[1646035270882,1.72014231,88.279,88.178,4.533]
[1646035271082,9.83014231,88.279,88.178,4.533]
[1646035271380,9.83014231,88.279,88.179,6.0]
[1646035271982,1.61955583,88.284,88.181,113.1]
[1646035272281,1.61955583,88.284,88.182,6.0]
[1646035272582,22.6152,88.285,88.182,6.0]
[1646035272780,1.49508586,88.284,88.183,2.74678921]
[1646035272984,1.49508586,88.284,88.184,6.0]
[1646035273181,22.6152,88.285,88.19,17.0113]
[1646035273381,22.6152,88.285,88.191,8.578745]
[1646035273582,22.6152,88.285,88.191,6.0]
[1646035273881,22.6152,88.285,88.188,113.1]
[1646035274081,22.6152,88.285,88.19,113.1]
[1646035274281,22.6152,88.285,88.193,2.60400344]
[1646035274481,22.6152,88.285,88.2,17.0097]
[1646035274681,22.6152,88.285,88.201,6.0]
[1646035274881,22.6152,88.285,88.201,2.74678921]
[1646035275084,22.6152,88.285,88.203,2.36958544]
[1646035275281,22.6152,88.285,88.204,6.0]
[1646035276284,22.6152,88.285,88.211,113.1]
[1646035276485,53.95027506,88.288,88.213,113.1]
[1646035276687,1.87034891,88.328,88.215,113.1]
[1646035276885,17.1975,88.355,88.218,2.87477439]
[1646035276886,48.89465308,88.354,88.218,2.87477439]
[1646035277089,1.43103394,88.353,88.22,113.1]
[1646035277285,1.43103394,88.353,88.223,2.31129728]
[1646035277486,114.53103394,88.353,88.224,6.0]
[1646035277687,113.1,88.351,88.224,6.0]
[1646035277990,1.61886674,88.35,88.224,6.0]
[1646035278489,131.72216674,88.35,88.23,17.0029]
[1646035278687,1.46043198,88.349,88.231,6.0]
[1646035278888,1.46043198,88.349,88.225,115.84678921]
[1646035279088,1.46043198,88.349,88.232,2.74678921]
[1646035279387,1.46043198,88.349,88.233,6.0]
[1646035279588,113.1,88.337,88.233,6.0]
[1646035279787,113.1,88.335,88.233,6.0]
[1646035279987,1.54691254,88.334,88.227,6.0]
[1646035280389,1.54691254,88.334,88.202,113.1]
[1646035280694,1.54691254,88.334,88.22,2.53303294]
[1646035281188,1.54691254,88.334,88.2,40.615]
[1646035281189,113.1,88.317,88.2,40.474]
[1646035281389,158.8702,88.317,88.2,40.474]
[1646035281588,1.77302902,88.316,88.2,40.474]
[1646035282390,1.77302902,88.316,88.207,6.0]
[1646035282590,1.792945,88.308,88.2,40.474]
[1646035282992,1.792945,88.308,88.182,2.74678921]
[1646035283193,1.792945,88.308,88.171,54.52841075]
[1646035283390,1.792945,88.308,88.18,6.0]
[1646035283792,1.80666404,88.306,88.18,6.0]
[1646035283991,1.80666404,88.306,88.179,6.0]
[1646035284491,113.1,88.299,88.171,51.78162154]
[1646035284691,46.47281796,88.298,88.171,51.78162154]
[1646035284896,113.1,88.297,88.18,27.85382154]
[1646035285091,1.83231389,88.296,88.18,27.85382154]
[1646035285590,1.83231389,88.296,88.171,23.9278]
[1646035286192,1.83231389,88.296,88.179,6.0]
[1646035286394,17.0155,88.28,88.18,17.0139]
[1646035286594,102.59168509,88.279,88.181,8.99542362]
[1646035286794,102.59168509,88.279,88.181,11.74221283]
[1646035287199,114.74797761,88.278,88.181,6.0]
[1646035287395,1.41693807,88.277,88.181,6.0]
[1646035287595,1.41693807,88.277,88.178,4.533]
[1646035287795,113.1,88.276,88.178,4.533]
[1646035287996,1.55505539,88.275,88.178,4.533]
[1646035288801,2.31588678,88.276,88.179,6.0]
[1646035289598,2.31588678,88.276,88.18,113.1]
[1646035289801,2.31588678,88.276,88.182,113.1]
[1646035289998,2.31588678,88.276,88.184,113.1]
[1646035290199,2.31588678,88.276,88.185,8.51512372]
[1646035290399,2.31588678,88.276,88.186,6.0]
[1646035291198,2.31588678,88.277,88.186,6.0]
[1646035291601,2.31588678,88.277,88.191,115.81526575]
[1646035291901,2.31588678,88.277,88.193,2.9257154]
[1646035292101,2.31588678,88.277,88.195,113.1]
[1646035292323,2.31588678,88.277,88.194,6.0]
[1646035292324,2.31588678,88.277,88.197,113.1]
[1646035292526,2.31588678,88.277,88.201,113.1]
[1646035292727,2.31588678,88.277,88.203,113.1]
[1646035292924,2.31588678,88.277,88.205,113.1]
[1646035293124,2.31588678,88.277,88.208,2.9781034]
[1646035293328,2.31588678,88.277,88.21,113.1]
[1646035293529,2.31588678,88.277,88.212,113.1]
[1646035293725,2.31588678,88.277,88.214,113.1]
[1646035293927,2.31588678,88.277,88.22,17.0025]
[1646035294126,2.31588678,88.277,88.221,119.1]
[1646035294327,2.31588678,88.277,88.222,2.54402059]
[1646035294526,2.31588678,88.277,88.224,2.53861791]
[1646035294728,2.31588678,88.277,88.226,113.1]
[1646035294927,2.31588678,88.277,88.228,113.1]
[1646035295126,50.83348789,88.285,88.231,2.28221419]
[1646035295326,50.83348789,88.285,88.232,6.0]
[1646035295527,50.83348789,88.285,88.241,2.5128732]
[1646035295727,50.83348789,88.285,88.242,6.0]
[1646035296328,2.31588678,88.346,88.242,6.0]
[1646035296530,2.31588678,88.346,88.251,113.1]
[1646035296726,2.31588678,88.346,88.252,8.56892889]
[1646035297433,58.33426581,88.345,88.252,8.56892889]
[1646035298029,58.33426581,88.345,88.26,16.9972]
[1646035298228,58.33426581,88.345,88.261,8.97771298]
[1646035298229,2.31588678,88.344,88.261,8.97771298]
[1646035298428,2.31588678,88.344,88.263,113.1]
[1646035298630,2.31588678,88.344,88.265,113.1]
[1646035298833,2.31588678,88.344,88.267,113.1]
[1646035299232,2.31588678,88.344,88.266,8.98588992]
[1646035299233,2.31588678,88.344,88.271,113.1]
[1646035299433,2.31588678,88.344,88.273,113.1]
[1646035299632,2.31588678,88.344,88.275,113.1]
[1646035299831,2.31588678,88.344,88.272,6.0]
[1646035299832,2.31588678,88.344,88.278,2.73485938]
[1646035300031,2.31588678,88.344,88.28,113.1]
[1646035300233,2.31588678,88.344,88.282,113.1]
[1646035300534,2.31588678,88.344,88.281,6.0]
[1646035300535,2.31588678,88.344,88.285,2.63492019]
[1646035300733,2.31588678,88.344,88.286,6.0]
[1646035301435,2.31588678,88.344,88.29,16.9929]
[1646035301633,2.31588678,88.344,88.292,2.376054]
[1646035301834,2.31588678,88.387,88.294,113.1]
[1646035302035,2.31588678,88.387,88.295,8.5267933]
[1646035302432,49.35495002,88.386,88.295,6.0]
[1646035302632,1.79739807,88.385,88.295,6.0]
[1646035302934,1.79739807,88.385,88.3,16.9902]
[1646035303334,1.79739807,88.385,88.301,6.0]
[1646035303533,49.35495002,88.386,88.301,6.0]
[1646035303534,49.35495002,88.386,88.301,119.1]
[1646035303734,49.35495002,88.386,88.301,6.0]
[1646035303937,49.35495002,88.386,88.292,6.0]
[1646035304335,49.35495002,88.386,88.31,16.9888]
[1646035304534,2.31588678,88.387,88.312,113.1]
[1646035304736,2.31588678,88.387,88.315,2.72828629]
[1646035304935,2.31588678,88.387,88.318,2.47248265]
[1646035305139,2.31588678,88.387,88.321,3.04718548]
[1646035305338,2.31588678,88.387,88.322,6.0]
[1646035305537,48.33864455,88.386,88.322,6.0]
[1646035305939,48.33864455,88.386,88.33,16.9831]
[1646035306137,48.33864455,88.386,88.322,6.0]
[1646035306338,48.33864455,88.386,88.313,6.0]
[1646035306938,48.33864455,88.386,88.304,6.0]
[1646035307639,48.33864455,88.386,88.301,129.9175]
[1646035307838,48.33864455,88.386,88.302,8.94605099]
[1646035308438,48.33864455,88.386,88.32,16.9872]
[1646035308638,48.33864455,88.386,88.321,6.0]
[1646035308839,2.31588678,88.385,88.321,6.0]
[1646035309541,2.31588678,88.385,88.321,119.1]
[1646035309743,2.31588678,88.385,88.331,113.1]
[1646035309942,2.31588678,88.385,88.322,2.4337104]
[1646035309943,2.31588678,88.385,88.332,6.0]
[1646035310342,2.31588678,88.385,88.323,6.0]
[1646035311141,2.31588678,88.385,88.305,113.1]
[1646035311443,2.31588678,88.385,88.322,2.3325409]
[1646035311646,2.31588678,88.385,88.323,6.0]
[1646035311842,2.31588678,88.386,88.323,6.0]
[1646035313043,2.31588678,88.386,88.315,2.50336392]
[1646035313244,2.31588678,88.386,88.318,2.62520336]
[1646035313445,2.31588678,88.386,88.33,16.985]
[1646035313745,2.31588678,88.386,88.331,6.0]
[1646035314947,2.31588678,88.386,88.341,113.1]
[1646035315147,2.31588678,88.406,88.342,6.0]
[1646035315749,50.35733098,88.405,88.341,6.0]
[1646035318452,2.31588678,88.406,88.341,6.0]
[1646035318453,2.31588678,88.406,88.351,113.1]
[1646035318667,2.31588678,88.404,88.352,6.0]
[1646035319274,2.31588678,88.404,88.335,2.9163393]
[1646035319471,2.31588678,88.404,88.361,115.8780824]
[1646035319669,2.31588678,88.404,88.364,2.93557404]
[1646035319871,1.35100462,88.476,88.366,113.1]
[1646035320173,1.35100462,88.476,88.368,113.1]
[1646035320376,21.03280693,88.51,88.371,2.64762211]
[1646035320569,21.03280693,88.51,88.369,6.0]
[1646035320570,59.47762581,88.509,88.374,2.37223621]
[1646035320773,1.50531743,88.508,88.41,16.9689]
[1646035320971,1.50531743,88.508,88.411,6.0]
[1646035320972,1.37989178,88.499,88.411,6.0]
[1646035321673,1.56517714,88.497,88.411,6.0]
[1646035321873,1.56517714,88.497,88.42,16.9677]
[1646035322071,1.56517714,88.497,88.421,6.0]
[1646035322674,24.8009,88.498,88.412,140.71297487]
[1646035322875,24.8009,88.498,88.415,2.76996196]
[1646035323173,24.8009,88.498,88.422,2.74678921]
[1646035323374,24.8009,88.498,88.417,113.1]
[1646035323375,24.8009,88.498,88.423,6.0]
[1646035323574,24.8009,88.498,88.43,16.9657]
[1646035323777,24.8009,88.498,88.431,6.0]
[1646035324379,24.8009,88.498,88.42,113.1]
[1646035324380,1.36208296,88.531,88.422,113.1]
[1646035324576,1.36208296,88.531,88.421,8.40173411]
[1646035324577,1.60659076,88.54,88.441,113.1]
[1646035324779,1.60659076,88.54,88.443,113.1]
[1646035324980,114.70659076,88.54,88.422,5.13066877]
[1646035325181,113.1,88.538,88.422,2.74678921]
[1646035325378,16.9656,88.53,88.422,2.74678921]
[1646035325577,25.32229275,88.529,88.405,2.6844858]
[1646035325776,1.5309047,88.528,88.406,2.74678921]
[1646035325977,1.5309047,88.528,88.43,130.0659]
[1646035326377,1.5309047,88.528,88.432,113.1]
[1646035326578,1.5309047,88.528,88.434,113.1]
[1646035326778,1.5309047,88.528,88.436,113.1]
[1646035326982,1.38603231,88.561,88.461,113.1]
[1646035327283,1.38603231,88.561,88.463,113.1]
[1646035327478,1.38603231,88.561,88.465,113.1]
[1646035327677,1.38603231,88.561,88.466,6.0]
[1646035327678,16.9571,88.56,88.466,6.0]
[1646035328078,48.01810295,88.54,88.466,6.0]
[1646035328277,1.47464233,88.539,88.449,6.0]
[1646035328483,1.47464233,88.539,88.48,16.9545]
[1646035328680,1.47464233,88.539,88.481,6.0]
[1646035330080,48.01810295,88.54,88.481,6.0]
[1646035330484,48.01810295,88.54,88.49,16.9545]
[1646035330684,1.37713341,88.558,88.491,6.0]
[1646035330883,1.35068822,88.54,88.491,6.0]
[1646035331086,24.6724,88.559,88.491,6.0]
[1646035331285,56.5067,88.61,88.491,8.74678921]
[1646035331502,48.15296826,88.608,88.492,113.1]
[1646035331684,48.15296826,88.608,88.494,113.1]
[1646035331685,59.31756919,88.607,88.494,113.1]
[1646035331884,1.66049859,88.599,88.5,15.4526]
[1646035332086,1.66049859,88.599,88.501,6.0]
[1646035332287,57.45681827,88.607,88.501,8.95416162]
[1646035332484,1.6613268,88.606,88.502,115.84678921]
[1646035332683,1.6613268,88.606,88.505,3.0107711]
[1646035332884,1.6613268,88.606,88.507,113.1]
[1646035333084,1.6613268,88.606,88.509,113.1]
[1646035333284,1.6613268,88.606,88.53,130.0454]
[1646035333485,1.6613268,88.606,88.531,6.0]
[1646035333884,1.6613268,88.606,88.532,6.0]
[1646035334493,1.6613268,88.606,88.497,6.0]
[1646035334689,1.6613268,88.606,88.521,113.1]
[1646035334891,1.6613268,88.606,88.523,113.1]
[1646035335088,1.6613268,88.606,88.525,113.1]
[1646035335295,1.6613268,88.606,88.527,113.1]
[1646035335489,57.45681827,88.607,88.53,16.9466]
[1646035335788,57.45681827,88.607,88.531,6.0]
[1646035336289,1.35786638,88.606,88.531,6.0]
[1646035336490,1.35786638,88.606,88.531,8.74678921]
[1646035336788,1.45330997,88.636,88.55,16.9411]
[1646035336989,1.45330997,88.636,88.551,6.0]
[1646035337190,1.45330997,88.636,88.551,8.74678921]
[1646035337391,1.45330997,88.636,88.551,6.0]
[1646035337590,47.03771005,88.635,88.541,6.0]
[1646035337791,1.66634958,88.634,88.541,6.0]
[1646035337990,1.66634958,88.634,88.524,6.0]
[1646035338390,1.66634958,88.634,88.525,2.74678921]
[1646035338590,1.66634958,88.634,88.526,6.0]
[1646035338992,1.66634958,88.634,88.527,2.74678921]
[1646035339190,1.66634958,88.634,88.54,16.943]
[1646035339391,1.66634958,88.634,88.541,6.0]
[1646035339594,1.66634958,88.634,88.541,8.74678921]
[1646035339894,1.66634958,88.634,88.542,2.74678921]
[1646035340091,1.66634958,88.634,88.543,6.0]
[1646035340692,70.56311005,88.635,88.55,16.9409]
[1646035340891,70.56311005,88.635,88.551,13.24260784]
[1646035341092,70.56311005,88.635,88.551,13.26178921]
[1646035341292,70.56311005,88.635,88.552,2.74678921]
[1646035341492,70.56311005,88.635,88.553,10.515]
[1646035341893,70.56311005,88.635,88.554,2.74678921]
[1646035342093,70.56311005,88.635,88.555,10.514]
[1646035342499,23.5254,88.635,88.57,16.937]
[1646035342693,1.40313249,88.649,88.571,6.0]
[1646035342893,23.4569,88.655,88.571,8.74678921]
[1646035343094,1.63070041,88.654,88.572,2.74678921]
[1646035343393,1.63070041,88.654,88.573,6.0]
[1646035343593,55.94484714,88.653,88.573,6.0]
[1646035343795,1.45635398,88.652,88.574,2.74678921]
[1646035343994,1.45635398,88.652,88.575,6.0]
[1646035344795,1.45635398,88.652,88.559,6.0]
[1646035345195,1.45635398,88.652,88.53,56.4704]
[1646035345196,2.74678921,88.651,88.53,4.514]
[1646035345495,4.24429149,88.651,88.531,6.0]
[1646035345696,1.49058303,88.649,88.524,113.1]
[1646035345898,16.9416,88.64,88.54,16.9429]
[1646035346098,54.62496303,88.639,88.542,113.1]
[1646035346299,77.55538964,88.639,88.543,6.0]
[1646035346501,1.81133212,88.638,88.543,6.0]
[1646035346798,1.81133212,88.638,88.544,113.1]
[1646035346998,1.81133212,88.638,88.546,113.1]
[1646035347200,1.81133212,88.638,88.548,113.1]
[1646035347398,1.81133212,88.638,88.55,113.1]
[1646035347602,1.81133212,88.638,88.552,113.1]
[1646035347801,1.81133212,88.638,88.554,113.1]
[1646035348001,1.81133212,88.638,88.556,113.1]
[1646035348200,77.55538964,88.639,88.559,3.08960086]
[1646035348403,77.55538964,88.639,88.561,113.1]
[1646035348600,77.55538964,88.639,88.563,113.1]
[1646035348801,77.55538964,88.639,88.565,113.1]
[1646035349103,77.55538964,88.639,88.567,113.1]
[1646035349301,77.55538964,88.639,88.569,113.1]
[1646035349500,77.55538964,88.639,88.57,22.9368]
[1646035349703,1.41815852,88.638,88.57,6.0]
[1646035350104,1.41815852,88.638,88.544,6.0]
[1646035350502,1.41815852,88.638,88.55,16.9409]
[1646035350704,1.41815852,88.638,88.552,113.1]
[1646035351002,16.9435,88.63,88.553,6.0]
[1646035351204,16.9435,88.63,88.531,6.0]
[1646035351404,114.64981004,88.629,88.531,6.0]
[1646035351605,2.74678921,88.629,88.515,4.515]
[1646035351804,27.13168921,88.628,88.517,113.1]
[1646035352005,1.67269592,88.627,88.518,6.0]
[1646035352204,4.41948513,88.627,88.516,6.0]
[1646035352424,58.10530898,88.625,88.516,6.0]
[1646035352628,16.9462,88.62,88.521,113.1]
[1646035352825,16.9462,88.62,88.52,16.9473]
[1646035352826,1.65913762,88.619,88.523,113.1]
[1646035353029,1.65913762,88.619,88.524,6.0]
[1646035353225,1.65913762,88.619,88.522,32.83297487]
[1646035353426,1.65913762,88.619,88.523,2.74678921]
[1646035353626,1.65913762,88.619,88.524,6.0]
[1646035353827,16.9477,88.61,88.522,6.0]
[1646035354127,58.33825695,88.608,88.522,6.0]
[1646035354328,1.75160321,88.607,88.508,6.0]
[1646035354629,1.75160321,88.607,88.523,26.83297487]
[1646035354828,1.75160321,88.607,88.524,119.1]
[1646035355027,1.75160321,88.607,88.53,16.9448]
[1646035355231,1.75160321,88.607,88.531,6.0]
[1646035355929,1.75160321,88.607,88.499,113.1]
[1646035356129,1.75160321,88.607,88.508,113.1]
[1646035356329,1.75160321,88.607,88.509,119.1]
[1646035356530,1.75160321,88.607,88.511,113.1]
[1646035356734,1.6853522,88.607,88.513,113.1]
[1646035356930,1.6853522,88.607,88.515,113.1]
[1646035357132,1.6853522,88.607,88.518,2.4594274]
[1646035357330,1.6853522,88.607,88.52,113.1]
[1646035357532,1.6853522,88.607,88.531,113.1]
[1646035357734,56.679134,88.608,88.533,113.1]
[1646035357933,56.679134,88.608,88.535,113.1]
[1646035358232,56.679134,88.608,88.537,113.1]
[1646035358533,56.679134,88.608,88.539,113.1]
[1646035358732,56.679134,88.608,88.54,6.0]
[1646035358934,23.1692,88.626,88.551,113.1]
[1646035359234,23.1933,88.625,88.553,113.1]
[1646035359433,23.1933,88.625,88.555,113.1]
[1646035359634,23.1933,88.625,88.557,113.1]
[1646035359833,23.1933,88.625,88.559,113.1]
[1646035360035,23.1933,88.625,88.57,16.9374]
[1646035360236,23.1933,88.625,88.571,6.0]
[1646035361435,52.03217544,88.627,88.572,113.1]
[1646035361636,1.59689981,88.669,88.581,113.1]
[1646035361835,1.6170874,88.668,88.583,113.1]
[1646035362038,1.6170874,88.668,88.585,113.1]
[1646035362236,1.6170874,88.668,88.587,113.1]
[1646035362438,1.6170874,88.668,88.589,113.1]
[1646035362636,1.45277744,88.666,88.59,6.0]
[1646035363441,1.45277744,88.666,88.59,22.9346]
[1646035365143,1.45277744,88.666,88.591,2.74678921]
[1646035365347,1.45277744,88.666,88.584,17.2241]
[1646035366747,1.45277744,88.666,88.585,6.0]
[1646035369452,16.9376,88.66,88.58,16.9367]
[1646035369657,1.68383624,88.659,88.553,27.52098921]
[1646035369852,4.1077817,88.666,88.555,6.0]
[1646035370456,16.9397,88.65,88.555,6.0]
[1646035370658,24.7012085,88.649,88.555,6.0]
[1646035370855,1.82277157,88.648,88.555,6.0]
[1646035371454,1.82277157,88.648,88.56,16.9393]
[1646035371655,1.82277157,88.648,88.561,8.93525832]
[1646035371954,1.82277157,88.648,88.561,11.68204753]
[1646035372155,22.9803,88.649,88.562,34.09376408]
[1646035372354,22.9803,88.649,88.563,121.63540455]
[1646035372555,22.9803,88.649,88.565,113.1]
[1646035372755,1.42874848,88.696,88.581,113.1]
[1646035372955,1.42874848,88.696,88.566,12.91558495]
[1646035372956,25.98284848,88.696,88.583,113.1]
[1646035373158,25.98284848,88.696,88.585,113.1]
[1646035373356,25.98284848,88.696,88.587,113.1]
[1646035373557,25.98284848,88.696,88.589,113.1]
[1646035373758,60.01233746,88.668,88.591,113.1]
[1646035373959,60.01233746,88.668,88.593,113.1]
[1646035374158,60.01233746,88.668,88.595,113.1]
[1646035374357,60.01233746,88.668,88.597,113.1]
[1646035374661,60.01233746,88.668,88.6,16.9293]
[1646035374858,1.46361089,88.667,88.601,6.0]
[1646035375158,1.46361089,88.667,88.601,8.74678921]
[1646035375763,1.46361089,88.667,88.584,2.74678921]
[1646035375960,25.39838921,88.666,88.57,15.42582382]
[1646035376160,114.93516532,88.665,88.525,16.7005]
[1646035376361,1.58735959,88.664,88.525,16.7005]
[1646035376561,113.1,88.663,88.525,16.7005]
[1646035376866,1.6636424,88.662,88.525,16.7005]
[1646035377160,113.1,88.661,88.525,16.7005]
[1646035377363,113.1,88.661,88.526,6.0]
[1646035377364,1.50310847,88.66,88.526,6.0]
[1646035377565,113.1,88.637,88.526,6.0]
[1646035377763,113.1,88.635,88.521,6.0]
[1646035377962,1.79225665,88.634,88.521,6.0]
[1646035379563,16.9476,88.61,88.521,6.0]
[1646035379863,76.23799574,88.609,88.521,6.0]
[1646035380064,1.87279911,88.608,88.521,6.0]
[1646035380265,1.43782723,88.606,88.521,6.0]
[1646035382864,1.43782723,88.606,88.5,16.9495]
[1646035382865,113.1,88.599,88.5,16.9495]
[1646035383065,1.65629792,88.598,88.486,4.517]
[1646035383264,1.65629792,88.598,88.488,113.1]
[1646035383265,24.98249792,88.598,88.488,113.1]
[1646035383467,1.82385399,88.597,88.49,113.1]
[1646035383665,1.82385399,88.597,88.492,113.1]
[1646035383866,1.82385399,88.597,88.494,113.1]
[1646035384064,1.82385399,88.597,88.493,13.50903724]
[1646035384065,1.82385399,88.597,88.496,113.1]
[1646035384267,1.82385399,88.597,88.497,10.517]
[1646035384466,1.82385399,88.597,88.51,16.9474]
[1646035384666,1.82385399,88.597,88.511,10.517]
[1646035385068,1.82385399,88.597,88.512,2.74678921]
[1646035385268,1.82385399,88.597,88.513,6.0]
[1646035385567,1.82385399,88.597,88.514,113.1]
[1646035385776,1.82385399,88.597,88.516,113.1]
[1646035385978,1.82385399,88.597,88.517,6.0]
[1646035386595,1.82385399,88.597,88.516,6.0]
[1646035390096,1.82385399,88.597,88.511,6.0]
[1646035390295,1.82385399,88.597,88.516,2.74678921]
[1646035390498,1.82385399,88.597,88.517,6.0]
[1646035390695,23.3262,88.598,88.517,6.0]
[1646035390696,23.3262,88.598,88.522,2.68265422]
[1646035390897,23.3262,88.598,88.525,2.30056678]
[1646035391096,23.3262,88.598,88.527,113.1]
[1646035391296,23.3262,88.598,88.529,113.1]
[1646035391601,23.5914,88.607,88.532,2.37118176]
[1646035391895,23.5914,88.607,88.53,6.0]
[1646035391896,46.5422,88.639,88.542,2.63871072]
[1646035392096,46.5422,88.639,88.544,113.1]
[1646035392398,46.5422,88.639,88.543,10.515]
[1646035392399,46.5422,88.639,88.546,113.1]
[1646035392596,8.78187996,88.638,88.548,113.1]
[1646035392796,8.78187996,88.638,88.55,113.1]
[1646035392997,46.5422,88.639,88.552,113.1]
[1646035393196,46.5422,88.639,88.571,113.1]
[1646035393396,46.5422,88.639,88.573,113.1]
[1646035393595,46.5422,88.639,88.575,113.1]
[1646035393797,46.5422,88.639,88.577,113.1]
[1646035393997,46.5422,88.639,88.579,113.1]
[1646035394199,55.86045397,88.658,88.581,113.1]
[1646035394396,16.9353,88.68,88.578,6.0]
[1646035394397,48.1334,88.679,88.583,113.1]
[1646035394596,48.1334,88.679,88.582,8.42944272]
[1646035394597,8.78337305,88.657,88.585,113.1]
[1646035394797,8.78337305,88.657,88.587,113.1]
[1646035394997,8.78337305,88.677,88.588,119.1]
[1646035395499,1.7766044,88.675,88.588,119.1]
[1646035396198,8.78337305,88.674,88.588,119.1]
[1646035396806,8.78337305,88.674,88.588,6.0]
[1646035397000,16.9359,88.67,88.582,6.0]
[1646035397200,1.48262068,88.669,88.582,6.0]
[1646035397402,1.48262068,88.669,88.58,16.9336]
[1646035397403,10.26599373,88.669,88.581,6.0]
[1646035397800,1.4756476,88.667,88.581,6.0]
[1646035398003,16.9415,88.64,88.563,2.74678921]